fUST/lending_fUST_20250818
["ID","MTS","AMOUNT","RATE_DAILY","PERIOD"]
[380022156,1755480638490,-292.64999984,0.00019175,2]
[380022157,1755480638499,-500.0,0.00019175,2]
[380022158,1755480638508,-500.0,0.00019175,2]
[380022159,1755480638517,-357.43946916,0.00019175,2]
[380022160,1755480638529,-142.56053084,0.00019175,2]
[380022161,1755480638538,-400.88859077,0.00019178,2]
[380022162,1755480638547,-480.0,0.00019178,2]
[380022163,1755480638556,-492.48358925,0.00019178,2]
[380022164,1755480638565,-194.96573964,0.00019178,2]
[380022165,1755480638575,-460.36672595,0.00019178,2]
[380022166,1755480638584,-480.0,0.00019178,2]
[380022167,1755480638593,-1032.14,0.00019178,2]
[380022168,1755480638602,-500.0,0.00019451,2]
[380022170,1755480638612,-151.0,0.00019452,2]
[380022171,1755480638621,-151.0,0.00019452,2]
[380022173,1755480638630,-151.0,0.00019452,2]
[380022175,1755480638639,-198.0,0.00019452,2]
[380022176,1755480638649,-492.0,0.00019452,2]
[380022177,1755480638658,-151.0,0.00019452,2]
[380022178,1755480638667,-151.0,0.00019452,2]
[380022180,1755480638677,-547.0,0.00019452,2]
[380022182,1755480638686,-151.0,0.00019452,2]
[380022183,1755480638698,-500.0,0.00019452,2]
[380022185,1755480638707,-151.0,0.00019452,2]
[380022187,1755480638716,-283.59985108,0.00019452,2]
[380022189,1755480638725,-500.0,0.00019452,2]
[380022191,1755480638735,-218.43357084,0.00019452,2]
[380022192,1755480638744,-943.14,0.00019452,2]
[380022193,1755480638753,-480.0,0.00019452,2]
[380022194,1755480638762,-480.0,0.00019452,2]
[380022195,1755480638771,-480.0,0.00019452,2]
[380022196,1755480638781,-480.0,0.00019452,2]
[380022197,1755480638790,-480.0,0.00019452,2]
[380022198,1755480638799,-1766.04,0.00019452,2]
[380022199,1755480638808,-695.82,0.00019452,2]
[380022200,1755480638817,-344.71,0.00019452,2]
[380022201,1755480638826,-480.0,0.00019452,2]
[380022202,1755480638835,-480.0,0.00019452,2]
[380022203,1755480638844,-480.0,0.00019452,2]
[380022204,1755480638860,-1032.14,0.00019452,2]
[380022205,1755480638869,-480.0,0.00019452,2]
[380022206,1755480638878,-223.82635061,0.00019474,2]
[380022207,1755480638888,-285.03908859,0.00019476,2]
[380022208,1755480638897,-298.15593294,0.00019724,2]
[380022209,1755480638906,-569.50688636,0.00019725,2]
[380022210,1755480638916,-241.12323456,0.00019725,2]
[380022211,1755480638925,-442.24178609,0.00019725,2]
[380022212,1755480638934,-480.0,0.00019725,2]
[380022213,1755480638945,-480.0,0.00019725,2]
[380022214,1755480638955,-460.0,0.00019725,2]
[380022215,1755480638964,-480.0,0.00019725,2]
[380022216,1755480638973,-460.0,0.00019725,2]
[380022217,1755480638982,-480.0,0.00019725,2]
[380022218,1755480638991,-480.0,0.00019725,2]
[380022219,1755480639001,-480.0,0.00019725,2]
[380022220,1755480639010,-480.0,0.00019725,2]
[380022221,1755480639019,-500.0,0.00019725,2]
[380022222,1755480639028,-165.15328735,0.00019725,2]
[380022223,1755480639037,-480.0,0.00019725,2]
[380022224,1755480639046,-480.0,0.00019725,2]
[380022225,1755480639055,-480.0,0.00019725,2]
[380022226,1755480639064,-480.0,0.00019725,2]
[380022227,1755480639074,-480.0,0.00019725,2]
[380022228,1755480639083,-480.0,0.00019725,2]
[380022229,1755480639093,-480.0,0.00019725,2]
[380022230,1755480639103,-480.0,0.00019725,2]
[380022231,1755480639112,-460.52798192,0.00019725,2]
[380022232,1755480639122,-480.0,0.00019725,2]
[380022233,1755480639131,-480.0,0.00019725,2]
[380022234,1755480639140,-460.0,0.00019725,2]
[380022235,1755480639150,-480.0,0.00019725,2]
[380022236,1755480639159,-480.0,0.00019725,2]
[380022237,1755480639168,-480.0,0.00019725,2]
[380022238,1755480639177,-421.30257787,0.00019725,2]
[380022239,1755480639187,-480.0,0.00019725,2]
[380022240,1755480639199,-480.0,0.00019725,2]
[380022241,1755480639209,-480.0,0.00019725,2]
[380022242,1755480639218,-480.0,0.00019725,2]
[380022243,1755480639228,-480.0,0.00019725,2]
[380022244,1755480639355,-463.21690501,0.00019725,2]
[380022245,1755480639365,-480.0,0.00019725,2]
[380022246,1755480639374,-480.0,0.00019725,2]
[380022247,1755480639384,-461.56388274,0.00019725,2]
[380022248,1755480639393,-480.0,0.00019725,2]
[380022249,1755480639403,-480.0,0.00019725,2]
[380022250,1755480639413,-480.0,0.00019725,2]
[380022251,1755480639422,-480.0,0.00019725,2]
[380022252,1755480639431,-480.0,0.00019725,2]
[380022253,1755480639442,-460.63788066,0.00019725,2]
[380022254,1755480639452,-480.0,0.00019725,2]
[380022255,1755480639464,-480.0,0.00019725,2]
[380022256,1755480639474,-480.0,0.00019725,2]
[380022257,1755480639483,-406.07024579,0.00019725,2]
[380022258,1755480639494,-480.0,0.00019725,2]
[380022259,1755480639503,-480.0,0.00019725,2]
[380022260,1755480639513,-480.0,0.00019725,2]
[380022261,1755480639522,-480.0,0.00019725,2]
[380022262,1755480639532,-480.0,0.00019725,2]
[380022263,1755480639542,-480.0,0.00019725,2]
[380022264,1755480639551,-480.0,0.00019725,2]
[380022265,1755480639561,-480.0,0.00019725,2]
[380022266,1755480639570,-480.0,0.00019725,2]
[380022267,1755480639579,-480.0,0.00019725,2]
[380022268,1755480639598,-480.0,0.00019725,2]
[380022269,1755480639610,-480.0,0.00019725,2]
[380022270,1755480639620,-480.0,0.00019725,2]
[380022271,1755480639629,-480.0,0.00019725,2]
[380022272,1755480639639,-480.0,0.00019725,2]
[380022273,1755480639648,-480.0,0.00019725,2]
[380022274,1755480639657,-480.0,0.00019725,2]
[380022275,1755480639666,-480.0,0.00019725,2]
[380022276,1755480639675,-500.0,0.00019725,2]
[380022277,1755480639684,-480.0,0.00019725,2]
[380022278,1755480639697,-480.0,0.00019725,2]
[380022279,1755480639706,-480.0,0.00019725,2]
[380022280,1755480639715,-480.0,0.00019725,2]
[380022281,1755480639724,-427.38100069,0.00019725,2]
[380022282,1755480639734,-534.4673109,0.00019725,2]
[380022283,1755480639743,-480.0,0.00019725,2]
[380022284,1755480639753,-480.0,0.00019725,2]
[380022285,1755480639762,-480.0,0.00019725,2]
[380022286,1755480639771,-504.7,0.00019725,2]
[380022287,1755480639780,-151.0,0.00019726,2]
[380022288,1755480639790,-198.0,0.00019726,2]
[380022289,1755480639799,-492.0,0.00019726,2]
[380022290,1755480639808,-151.0,0.00019726,2]
[380022291,1755480639818,-151.0,0.00019726,2]
[380022292,1755480639827,-198.0,0.00019726,2]
[380022293,1755480639837,-198.0,0.00019726,2]
[380022294,1755480639846,-151.0,0.00019726,2]
[380022295,1755480639856,-199.86166224,0.00019726,2]
[380022296,1755480639865,-943.14,0.00019726,2]
[380022297,1755480639874,-480.0,0.00019726,2]
[380022298,1755480639884,-480.0,0.00019726,2]
[380022299,1755480639893,-480.0,0.00019726,2]
[380022300,1755480639902,-624.95,0.00019726,2]
[380022301,1755480639911,-1766.04,0.00019726,2]
[380022302,1755480639921,-695.82,0.00019726,2]
[380022303,1755480639930,-480.0,0.00019726,2]
[380022304,1755480639939,-480.0,0.00019726,2]
[380022305,1755480639951,-480.0,0.00019726,2]
[380022306,1755480639961,-1032.14,0.00019726,2]
[380022307,1755480639970,-1000.0,0.000198,4]
[380022308,1755480639979,-1000.0,0.000198,5]
[380022309,1755480639989,-480.0,0.00019839,2]
[380022310,1755480639998,-200.0,0.0001984,20]
[380022311,1755480640007,-200.0,0.0001984,20]
[380022312,1755480640016,-200.0,0.0001984,20]
[380022313,1755480640025,-200.0,0.0001984,20]
[380022314,1755480640035,-200.0,0.0001984,20]
[380022315,1755480640044,-200.0,0.0001984,20]
[380022316,1755480640053,-200.0,0.0001984,20]
[380022317,1755480640062,-200.0,0.0001984,20]
[380022318,1755480640071,-200.0,0.0001984,20]
[380022319,1755480640081,-200.0,0.0001984,20]
[380022320,1755480640090,-733.499613,0.00019863,2]
[380022321,1755480640099,-425.36,0.0001987,3]
[380022322,1755480640109,-2063.29206472,0.00019873,2]
[380022323,1755480640117,-285.03908859,0.00019873,2]
[380022324,1755480640127,-10898.93838203,0.0001988,2]
[380022325,1755480640139,-4915.71588623,0.0001988,2]
[380022326,1755480640149,-2281.43828359,0.00019943,2]
[380022327,1755480640158,-232.64,0.00019958,3]
[380022328,1755480640168,-697.93,0.00019958,3]
[380022329,1755480640178,-609.67,0.00019963,3]
[380022330,1755480640187,-465.28,0.00019963,3]
[380022331,1755480640200,-160.0,0.00019966,3]
[380022332,1755480640210,-151.0,0.00019968,2]
[380022333,1755480640219,-531.95061825,0.00019968,2]
[380022334,1755480640229,-155.67715624,0.00019968,2]
[380022335,1755480640240,-151.0,0.00019968,2]
[380022336,1755480640250,-151.0,0.00019968,2]
[380022337,1755480640260,-151.0,0.00019968,2]
[380022338,1755480640271,-151.0,0.00019968,2]
[380022339,1755480640280,-151.0,0.00019968,2]
[380022340,1755480640290,-151.0,0.00019968,2]
[380022341,1755480640300,-151.0,0.00019968,2]
[380022342,1755480640310,-151.0,0.00019968,2]
[380022343,1755480640320,-287.45404034,0.00019968,2]
[380022344,1755480640331,-151.0,0.00019968,2]
[380022345,1755480640344,-151.0,0.00019968,2]
[380022346,1755480640354,-153.82730676,0.00019968,2]
[380022347,1755480640365,-178.11030688,0.00019968,2]
[380022348,1755480640375,-151.36751843,0.00019968,2]
[380022349,1755480640386,-160.5580098,0.00019968,2]
[380022350,1755480640396,-300.0,0.00019968,2]
[380022351,1755480640406,-300.0,0.00019968,2]
[380022352,1755480640417,-300.0,0.00019968,2]
[380022354,1755480640427,-151.0,0.00019968,2]
[380022356,1755480640440,-300.0,0.00019968,2]
[380022357,1755480640461,-318.20319011,0.00019968,2]
[380022358,1755480640472,-17842.522448,0.00019968,2]
[380022359,1755480640483,-541.71037648,0.00019973,2]
[380022360,1755480640494,-500.0,0.00019973,2]
[380022361,1755480640504,-500.0,0.00019973,2]
[380022362,1755480640514,-501.0519514,0.00019973,2]
[380022363,1755480640525,-500.0,0.00019973,2]
[380022364,1755480640535,-500.0,0.00019973,2]
[380022365,1755480640545,-500.0,0.00019973,2]
[380022366,1755480640555,-500.0,0.00019973,2]
[380022367,1755480640564,-626.05963948,0.00019973,2]
[380022368,1755480640574,-275.38677088,0.00019973,2]
[380022369,1755480640586,-224.61322912,0.00019973,2]
[380022370,1755480640596,-500.0,0.00019973,2]
[380022371,1755480640605,-260.0495896,0.00019973,2]
[380022372,1755480640614,-500.0,0.00019973,2]
[380022373,1755480640625,-500.0,0.00019973,2]
[380022374,1755480640636,-500.0,0.00019973,2]
[380022375,1755480640645,-500.0,0.00019973,2]
[380022376,1755480640655,-500.0,0.00019973,2]
[380022377,1755480640664,-500.0,0.00019973,2]
[380022378,1755480640673,-500.0,0.00019973,2]
[380022379,1755480640683,-254.58585111,0.00019973,2]
[380022380,1755480640696,-160.31078128,0.00019973,2]
[380022381,1755480640707,-500.0,0.00019973,2]
[380022382,1755480640717,-500.0,0.00019973,2]
[380022384,1755480640731,-500.0,0.00019973,2]
[380022387,1755480640762,-501.19436436,0.00019973,2]
[380022389,1755480640784,-167.68923922,0.00019973,2]
[380022390,1755480640795,-500.0,0.00019973,2]
[380022391,1755480640805,-500.0,0.00019973,2]
[380022392,1755480640815,-500.0,0.00019973,2]
[380022393,1755480640824,-426.45244949,0.00019973,2]
[380022394,1755480640833,-500.0,0.00019973,2]
[380022395,1755480640842,-474.40055126,0.00019973,2]
[380022396,1755480640851,-211.74076198,0.00019973,2]
[380022397,1755480640861,-500.0,0.00019973,2]
[380022398,1755480640870,-489.26136196,0.00019973,2]
[380022399,1755480640880,-500.0,0.00019973,2]
[380022400,1755480640892,-500.0,0.00019973,2]
[380022401,1755480640902,-500.0,0.00019973,2]
[380022402,1755480640911,-500.0,0.00019973,2]
[380022403,1755480640920,-181181.79494088,0.0001998,2]
[380022404,1755480640929,-151.0,0.0001998,2]
[380022405,1755480640939,-151.0,0.0001998,2]
[380022406,1755480640952,-186.741227,0.0001998,2]
[380022407,1755480640962,-151.0,0.0001998,2]
[380022408,1755480640971,-186.741227,0.0001998,2]
[380022409,1755480640980,-270.016696,0.0001998,2]
[380022410,1755480640990,-270.016696,0.0001998,2]
[380022411,1755480640999,-151.0,0.0001998,2]
[380022412,1755480641008,-151.0,0.0001998,2]
[380022413,1755480641018,-151.0,0.0001998,2]
[380022414,1755480641028,-161.514969,0.0001998,2]
[380022415,1755480641037,-151.0,0.0001998,2]
[380022416,1755480641047,-197.523198,0.0001998,2]
[380022417,1755480641057,-151.0,0.0001998,2]
[380022418,1755480641066,-160.622494,0.0001998,2]
[380022419,1755480641076,-197.523198,0.0001998,2]
[380022420,1755480641086,-241.435134,0.0001998,2]
[380022421,1755480641095,-151.0,0.0001998,2]
[380022422,1755480641105,-151.0,0.0001998,2]
[380022423,1755480641114,-151.0,0.0001998,2]
[380022424,1755480641124,-222.343761,0.0001998,2]
[380022425,1755480641134,-461.26318852,0.00019998,2]
[380022426,1755480641143,-480.0,0.00019998,2]
[380022427,1755480641152,-500.0,0.00019998,2]
[380022428,1755480641162,-440.94260457,0.00019998,2]
[380022429,1755480641171,-480.0,0.00019998,2]
[380022430,1755480641180,-480.0,0.00019998,2]
[380022431,1755480641189,-480.0,0.00019998,2]
[380022432,1755480641202,-480.0,0.00019998,2]
[380022433,1755480641211,-480.0,0.00019998,2]
[380022434,1755480641220,-480.0,0.00019998,2]
[380022435,1755480641229,-460.0,0.00019998,2]
[380022436,1755480641239,-460.35394778,0.00019998,2]
[380022437,1755480641248,-480.0,0.00019998,2]
[380022438,1755480641257,-480.0,0.00019998,2]
[380022439,1755480641267,-480.0,0.00019998,2]
[380022440,1755480641276,-480.0,0.00019998,2]
[380022441,1755480641285,-163.8855355,0.00019998,2]
[380022442,1755480641295,-480.0,0.00019998,2]
[380022443,1755480641304,-480.0,0.00019998,2]
[380022444,1755480641313,-480.0,0.00019998,2]
[380022445,1755480641322,-480.0,0.00019998,2]
[380022446,1755480641331,-480.0,0.00019998,2]
[380022447,1755480641341,-480.0,0.00019998,2]
[380022448,1755480641350,-419.82905163,0.00019998,2]
[380022449,1755480641359,-300.0,0.00019998,2]
[380022450,1755480641368,-480.0,0.00019998,2]
[380022451,1755480641378,-480.0,0.00019998,2]
[380022452,1755480641387,-460.60210363,0.00019998,2]
[380022453,1755480641396,-480.0,0.00019998,2]
[380022454,1755480641405,-162.13,0.00019998,2]
[380022455,1755480641414,-480.0,0.00019998,2]
[380022456,1755480641423,-480.0,0.00019998,2]
[380022457,1755480641432,-480.0,0.00019998,2]
[380022458,1755480641444,-480.0,0.00019998,2]
[380022459,1755480641455,-480.0,0.00019998,2]
[380022460,1755480641465,-480.0,0.00019998,2]
[380022461,1755480641475,-500.0,0.00019998,2]
[380022462,1755480641484,-480.0,0.00019998,2]
[380022463,1755480641495,-440.98789055,0.00019998,2]
[380022464,1755480641504,-480.0,0.00019998,2]
[380022465,1755480641514,-504.7,0.00019999,2]
[380022466,1755480641523,-151.0,0.0002,2]
[380022467,1755480641534,-492.0,0.0002,2]
[380022468,1755480641543,-151.0,0.0002,2]
[380022469,1755480641554,-198.0,0.0002,2]
[380022470,1755480641563,-151.0,0.0002,2]
[380022471,1755480641572,-3410.47,0.0002,2]
[380022472,1755480641581,-943.14,0.0002,2]
[380022473,1755480641590,-218.55,0.0002,2]
[380022474,1755480641599,-480.0,0.0002,2]
[380022475,1755480641608,-159.6858523,0.0002,2]
[380022476,1755480641617,-1766.04,0.0002,2]
[380022477,1755480641626,-8512.20201597,0.0002,2]
[380022478,1755480641635,-19615.26985351,0.0002,2]
[380022479,1755480641645,-68322.52098655,0.0002,2]
[380022480,1755480641655,-28327.29049146,0.0002,2]
[380022481,1755480641665,-160.0,0.0002,3]
[380022482,1755480641674,-695.82,0.0002,2]
[380022483,1755480641684,-480.0,0.0002,2]
[380022484,1755480641694,-480.0,0.0002,2]
[380022485,1755480641703,-329.0,0.00020045,2]
[380022486,1755480641713,-480.0,0.00020113,2]
[380022487,1755480641722,-12682.46447135,0.0002015,2]
[380022488,1755480641731,-160.0,0.0002015,2]
[380022489,1755480641741,-160.0,0.0002015,2]
[380022490,1755480641750,-160.0,0.0002015,2]
[380022491,1755480641760,-216.83204348,0.0002015,2]
[380022492,1755480641770,-215.71995163,0.0002015,2]
[380022493,1755480641779,-160.0,0.0002015,2]
[380022494,1755480641788,-375.77065697,0.0002015,2]
[380022495,1755480641797,-417.15472785,0.0002015,2]
[380022496,1755480641806,-843.71309931,0.0002015,2]
[380022497,1755480641815,-160.0,0.0002015,2]
[380022498,1755480641824,-528.48506731,0.0002015,2]
[380022499,1755480641833,-160.0,0.0002015,2]
[380022500,1755480641842,-232.1512529,0.0002015,2]
[380022501,1755480641851,-151.0,0.0002015,2]
[380022502,1755480641861,-151.0,0.0002015,2]
[380022503,1755480641870,-151.0,0.0002015,2]
[380022504,1755480641879,-151.0,0.0002015,2]
[380022505,1755480641889,-160.0,0.0002015,2]
[380022506,1755480641898,-160.0,0.0002015,2]
[380022507,1755480641908,-160.0,0.0002015,2]
[380022508,1755480641917,-160.0,0.0002015,2]
[380022509,1755480641926,-500.0,0.00020173,2]
[380022510,1755480641935,-500.0,0.00020173,2]
[380022511,1755480641948,-270.016696,0.00020173,2]
[380022512,1755480641957,-270.016696,0.00020173,2]
[380022513,1755480641967,-151.0,0.00020173,2]
[380022514,1755480641976,-151.0,0.00020173,2]
[380022515,1755480641985,-151.0,0.00020173,2]
[380022516,1755480641994,-151.0,0.00020173,2]
[380022517,1755480642003,-197.523198,0.00020173,2]
[380022518,1755480642011,-197.523198,0.00020173,2]
[380022519,1755480642020,-187.230981,0.00020187,2]
[380022520,1755480642029,-151.0,0.00020273,2]
[380022521,1755480642039,-151.0,0.00020273,2]
[380022522,1755480642048,-151.0,0.00020273,2]
[380022523,1755480642057,-213.193692,0.00020273,2]
[380022524,1755480642066,-213.193692,0.00020273,2]
[380022525,1755480642075,-151.0,0.00020273,2]
[380022526,1755480642084,-151.0,0.00020273,2]
[380022527,1755480642093,-151.0,0.00020273,2]
[380022528,1755480642101,-151.0,0.00020273,2]
[380022529,1755480642111,-151.0,0.00020273,2]
[380022530,1755480642120,-943.14,0.00020273,2]
[380022531,1755480642128,-480.0,0.00020273,2]
[380022532,1755480642138,-1766.04,0.00020273,2]
[380022533,1755480642146,-695.82,0.00020273,2]
[380022534,1755480642155,-504.7,0.00020273,2]
[380022535,1755480642164,-480.0,0.00020273,2]
[380022536,1755480642173,-480.0,0.00020273,2]
[380022537,1755480642182,-245.0,0.00020274,2]
[380022538,1755480642195,-492.0,0.00020274,2]
[380022539,1755480642203,-198.0,0.00020274,2]
[380022540,1755480642212,-151.0,0.00020274,2]
[380022541,1755480642221,-151.0,0.00020347,2]
[380022542,1755480642230,-186.741227,0.00020347,2]
[380022543,1755480642240,-186.741227,0.00020347,2]
[380022544,1755480642249,-151.0,0.00020387,2]
[380022545,1755480642259,-151.0,0.00020387,2]
[380022546,1755480642268,-151.0,0.00020387,2]
[380022547,1755480642277,-480.0,0.00020387,2]
[380022548,1755480642284,-160.0,0.00020406,2]
[380022549,1755480642293,-972.0,0.0002041,2]
[380022550,1755480642406,-2153.0,0.0002041,2]
[380022551,1755480642416,-637.0,0.0002041,2]
[380022552,1755480642425,-408.0,0.0002041,2]
[380022553,1755480642434,-422.367,0.0002041,2]
[380022554,1755480642447,-160.0,0.00020418,4]
[380022555,1755480642456,-164.56,0.00020471,2]
[380022556,1755480642469,-151.0,0.00020471,2]
[380022557,1755480642477,-151.0,0.00020471,2]
[380022558,1755480642487,-151.0,0.00020471,2]
[380022559,1755480642497,-422.13,0.000205,2]
[380022560,1755480642507,-1716.26,0.000205,2]
[380022561,1755480642516,-151.30541596,0.00020516,2]
[380022562,1755480642526,-1000.0,0.00020521,2]
[380022563,1755480642535,-1000.0,0.00020521,2]
[380022564,1755480642545,-310.29888741,0.00020521,2]
[380022565,1755480642554,-1000.0,0.00020521,2]
[380022566,1755480642564,-531.31961904,0.00020521,2]
[380022567,1755480642573,-1000.0,0.00020521,2]
[380022568,1755480642583,-325.94993229,0.00020521,2]
[380022569,1755480642592,-1000.0,0.00020521,2]
[380022570,1755480642601,-1000.0,0.00020521,2]
[380022571,1755480642610,-501.11052222,0.00020521,2]
[380022572,1755480642620,-1000.0,0.00020521,2]
[380022573,1755480642629,-158.3190125,0.00020521,2]
[380022574,1755480642639,-1000.0,0.00020521,2]
[380022575,1755480642648,-1000.0,0.00020521,2]
[380022576,1755480642657,-1000.0,0.00020521,2]
[380022577,1755480642667,-1102.38973704,0.00020521,2]
[380022578,1755480642677,-1000.0,0.00020521,2]
[380022579,1755480642686,-1000.0,0.00020521,2]
[380022580,1755480642701,-1001.72093208,0.00020521,2]
[380022582,1755480642711,-943.14,0.00020547,2]
[380022583,1755480642720,-480.0,0.00020547,2]
[380022584,1755480642731,-1766.04,0.00020547,2]
[380022585,1755480642740,-695.82,0.00020547,2]
[380022586,1755480642749,-504.7,0.00020547,2]
[380022588,1755480642758,-480.0,0.00020547,2]
[380022590,1755480642767,-480.0,0.00020547,2]
[380022591,1755480642777,-492.0,0.00020548,2]
[380022592,1755480642786,-245.0,0.00020548,2]
[380022593,1755480642795,-2063.2920647,0.00020633,2]
[380022595,1755480642803,-151.0,0.00020633,2]
[380022597,1755480642812,-151.0,0.00020633,2]
[380022598,1755480642822,-151.0,0.00020633,2]
[380022599,1755480642831,-372.00703256,0.00020648,2]
[380022600,1755480642840,-480.0,0.00020661,2]
[380022601,1755480642849,-195.75596977,0.00020712,3]
[380022602,1755480642859,-1000.0,0.000208,6]
[380022603,1755480642868,-1000.0,0.000208,7]
[380022604,1755480642886,-943.14,0.00020821,2]
[380022605,1755480642895,-480.0,0.00020821,2]
[380022606,1755480642904,-183.8074,0.00020821,2]
[380022607,1755480642913,-1766.04,0.00020821,2]
[380022608,1755480642922,-695.82,0.00020821,2]
[380022609,1755480642931,-504.7,0.00020821,2]
[380022610,1755480642940,-622.06,0.00020821,2]
[380022611,1755480642954,-480.0,0.00020821,2]
[380022612,1755480642963,-492.0,0.00020822,2]
[380022613,1755480642972,-270.016696,0.00020822,2]
[380022614,1755480642981,-270.016696,0.00020822,2]
[380022615,1755480642990,-151.0,0.00020822,2]
[380022616,1755480642999,-151.0,0.00020822,2]
[380022617,1755480643008,-151.0,0.00020822,2]
[380022618,1755480643017,-249.558661,0.00020822,2]
[380022619,1755480643025,-197.523198,0.00020822,2]
[380022620,1755480643034,-197.523198,0.00020822,2]
[380022621,1755480643043,-1000.0,0.00020834,5]
[380022622,1755480643052,-160.0,0.0002087,5]
[380022623,1755480643061,-217.39352174,0.0002087,5]
[380022624,1755480643070,-420.0,0.00020897,2]
[380022625,1755480643079,-1000.0,0.0002092,2]
[380022626,1755480643088,-219.168111,0.00020923,2]
[380022627,1755480643097,-150.0,0.00020923,2]
[380022628,1755480643106,-150.0,0.00020923,2]
[380022629,1755480643117,-150.0,0.00020923,2]
[380022630,1755480643126,-480.0,0.00020935,2]
[380022631,1755480643135,-260.0,0.00020954,2]
[380022632,1755480643144,-500.0,0.00020999,2]
[380022633,1755480643154,-3000.0,0.00021,2]
[380022634,1755480643163,-1942.28339133,0.00021,5]
[380022635,1755480643173,-197.999999,0.00021,2]
[380022636,1755480643182,-1203.29344712,0.00021,2]
[380022637,1755480643191,-203.07854422,0.00021,2]
[380022638,1755480643205,-151.0,0.00021,3]
[380022639,1755480643215,-3000.0,0.0002101,2]
[380022640,1755480643224,-151.0,0.0002101,2]
[380022641,1755480643233,-151.0,0.0002101,2]
[380022642,1755480643242,-151.0,0.0002101,2]
[380022643,1755480643251,-186.741227,0.0002101,2]
[380022644,1755480643260,-186.741227,0.0002101,2]
[380022645,1755480643269,-3000.0,0.0002102,2]
[380022646,1755480643279,-168.591531,0.0002102,2]
[380022647,1755480643287,-213.193692,0.0002102,2]
[380022648,1755480643296,-213.193692,0.0002102,2]
[380022649,1755480643306,-151.0,0.0002102,2]
[380022650,1755480643315,-500.0,0.00021027,2]
[380022651,1755480643324,-3000.0,0.0002103,2]
[380022652,1755480643334,-3000.0,0.0002104,2]
[380022653,1755480643343,-1000.0,0.00021046,2]
[380022654,1755480643352,-1000.0,0.00021046,2]
[380022655,1755480643363,-151.0,0.00021047,2]
[380022656,1755480643372,-12682.46447135,0.00021047,3]
[380022657,1755480643381,-160.0,0.00021047,3]
[380022658,1755480643391,-160.0,0.00021047,3]
[380022659,1755480643400,-215.71995163,0.00021047,3]
[380022660,1755480643410,-375.77065697,0.00021047,3]
[380022661,1755480643420,-160.0,0.00021047,3]
[380022662,1755480643429,-417.15472785,0.00021047,3]
[380022663,1755480643439,-3000.0,0.0002105,2]
[380022664,1755480643454,-151.0,0.0002105,2]
[380022665,1755480643465,-151.0,0.0002105,2]
[380022666,1755480643475,-151.0,0.0002105,2]
[380022667,1755480643484,-3000.0,0.0002106,2]
[380022668,1755480643494,-270.016696,0.00021068,2]
[380022669,1755480643504,-270.016696,0.00021068,2]
[380022670,1755480643513,-270.00753,0.00021068,2]
[380022671,1755480643522,-151.0,0.00021068,2]
[380022673,1755480643531,-151.0,0.00021068,2]
[380022674,1755480643541,-197.523198,0.00021068,2]
[380022675,1755480643551,-197.523198,0.00021068,2]
[380022676,1755480643560,-1500.0,0.00021068,2]